[Event "Early-Titled-Tuesday-Blitz-March-19-2024"]
[Site "Chess.com"]
[Date "2024.03.19"]
[Round "7"]
[White "grandcoach"]
[Black "pfalcon1949"]
[Result "0-1"]
[WhiteElo "2216"]
[BlackElo "1993"]
[TimeControl "180+1"]
[EndTime "9:18:48 PDT"]
[Termination "pfalcon1949 won on time"]

1. e4 {[%clk 0:03:00.9]} 1... e6 {[%clk 0:02:58]} 2. Nf3 {[%clk 0:02:58]} 2...
d5 {[%clk 0:02:58]} 3. e5 {[%clk 0:02:58.7]} 3... c5 {[%clk 0:02:56.8]} 4. b4
{[%clk 0:02:59.3]} 4... cxb4 {[%clk 0:02:56.5]} 5. a3 {[%clk 0:02:59.3]} 5...
Qa5 {[%clk 0:02:55.9]} 6. Bb2 {[%clk 0:02:54.9]} 6... Qb6 {[%clk 0:02:15.2]} 7.
Bd4 {[%clk 0:02:35.6]} 7... Qa5 {[%clk 0:02:12.1]} 8. axb4 {[%clk 0:02:30.7]}
8... Qxb4 {[%clk 0:02:10.6]} 9. Nc3 {[%clk 0:02:27.9]} 9... Nc6 {[%clk 0:02:03]}
10. Nb5 {[%clk 0:02:05.4]} 10... Rb8 {[%clk 0:01:29.3]} 11. Bc3 {[%clk
0:01:37.5]} 11... Qe4+ {[%clk 0:01:24.5]} 12. Be2 {[%clk 0:01:33.7]} 12... a6
{[%clk 0:01:24.8]} 13. Nd6+ {[%clk 0:01:08.5]} 13... Bxd6 {[%clk 0:01:23.8]} 14.
exd6 {[%clk 0:01:09.4]} 14... Nf6 {[%clk 0:01:22.2]} 15. O-O {[%clk 0:01:03.1]}
15... d4 {[%clk 0:01:09.1]} 16. Ba5 {[%clk 0:00:50.6]} 16... Nxa5 {[%clk
0:01:01.2]} 17. Rxa5 {[%clk 0:00:51.5]} 17... O-O {[%clk 0:00:54.4]} 18. Re1
{[%clk 0:00:43.4]} 18... Qc6 {[%clk 0:00:44.3]} 19. Nxd4 {[%clk 0:00:35.9]}
19... Qxd6 {[%clk 0:00:44.2]} 20. Nf3 {[%clk 0:00:19.7]} 20... Rd8 {[%clk
0:00:43]} 21. Bd3 {[%clk 0:00:18.1]} 21... h6 {[%clk 0:00:40.1]} 22. Qa1 {[%clk
0:00:16.4]} 22... Bd7 {[%clk 0:00:35.2]} 23. Rae5 {[%clk 0:00:12.1]} 23... Bc6
{[%clk 0:00:31.6]} 24. R1e3 {[%clk 0:00:07.2]} 24... Ng4 {[%clk 0:00:28.6]} 25.
Rh5 {[%clk 0:00:02.9]} 25... Nxe3 {[%clk 0:00:20.6]} 26. fxe3 {[%clk 0:00:03.8]}
26... Bxf3 {[%clk 0:00:18.6]} 27. gxf3 {[%clk 0:00:03.5]} 27... Qe7 {[%clk
0:00:11]} 28. Qf1 {[%clk 0:00:02.8]} 28... Qf6 {[%clk 0:00:09.6]} 29. Qg2 {[%clk
0:00:02.9]} 29... Kf8 {[%clk 0:00:09.5]} 30. Rh3 {[%clk 0:00:01.9]} 30... b5
{[%clk 0:00:09.4]} 31. Rg3 {[%clk 0:00:02.1]} 31... b4 {[%clk 0:00:09.5]} 0-1

[Event "Early-Titled-Tuesday-Blitz-March-19-2024"]
[Site "Chess.com"]
[Date "2024.03.19"]
[Round "7"]
[White "tusplingher"]
[Black "1mbl4"]
[Result "1-0"]
[WhiteElo "2481"]
[BlackElo "2597"]
[TimeControl "180+1"]
[EndTime "9:18:49 PDT"]
[Termination "tusplingher won by checkmate"]

1. e4 {[%clk 0:03:00.9]} 1... g6 {[%clk 0:03:00.2]} 2. d4 {[%clk 0:03:00.4]}
2... Bg7 {[%clk 0:03:00.6]} 3. Nc3 {[%clk 0:03:01]} 3... c5 {[%clk 0:03:01]} 4.
dxc5 {[%clk 0:02:59.6]} 4... b6 {[%clk 0:03:01.5]} 5. cxb6 {[%clk 0:02:44.8]}
5... axb6 {[%clk 0:03:02.4]} 6. Nf3 {[%clk 0:02:41.7]} 6... Bb7 {[%clk
0:03:02.5]} 7. Bd3 {[%clk 0:02:38.6]} 7... Nc6 {[%clk 0:03:02]} 8. O-O {[%clk
0:02:32.7]} 8... Nb4 {[%clk 0:03:01.9]} 9. Be3 {[%clk 0:02:25.8]} 9... Nxd3
{[%clk 0:02:54.1]} 10. cxd3 {[%clk 0:02:22.9]} 10... Nf6 {[%clk 0:02:52.7]} 11.
Qb3 {[%clk 0:02:21.6]} 11... O-O {[%clk 0:02:46.4]} 12. Qxb6 {[%clk 0:02:16.7]}
12... Qb8 {[%clk 0:02:43.6]} 13. Rfc1 {[%clk 0:02:06]} 13... Rc8 {[%clk
0:02:40]} 14. a4 {[%clk 0:01:56.5]} 14... Ra6 {[%clk 0:02:31.3]} 15. Qb3 {[%clk
0:01:52.1]} 15... Qa8 {[%clk 0:02:29.8]} 16. h3 {[%clk 0:01:42.1]} 16... Rb8
{[%clk 0:02:25.5]} 17. Qc2 {[%clk 0:01:36.2]} 17... d5 {[%clk 0:02:21.9]} 18. e5
{[%clk 0:01:32]} 18... Nd7 {[%clk 0:02:21.7]} 19. Bd4 {[%clk 0:01:29.4]} 19...
Bc6 {[%clk 0:02:21]} 20. e6 {[%clk 0:00:44]} 20... fxe6 {[%clk 0:02:21.9]} 21.
Bxg7 {[%clk 0:00:44.1]} 21... Kxg7 {[%clk 0:02:22.7]} 22. Nd4 {[%clk 0:00:44.1]}
22... Nf8 {[%clk 0:02:07.6]} 23. Qe2 {[%clk 0:00:42.3]} 23... Bd7 {[%clk
0:01:56.3]} 24. Qe5+ {[%clk 0:00:40.1]} 24... Kf7 {[%clk 0:01:53.5]} 25. b3
{[%clk 0:00:35.7]} 25... Rb4 {[%clk 0:01:33.9]} 26. Ncb5 {[%clk 0:00:33.6]}
26... Qd8 {[%clk 0:01:18.8]} 27. Qe1 {[%clk 0:00:15]} 27... Qa5 {[%clk
0:01:12.1]} 28. Nf3 {[%clk 0:00:10.7]} 28... Rxb3 {[%clk 0:00:55.2]} 29. Ne5+
{[%clk 0:00:11]} 29... Kg7 {[%clk 0:00:52.6]} 30. Qe3 {[%clk 0:00:11.9]} 30...
Ra8 {[%clk 0:00:18.2]} 31. Qf4 {[%clk 0:00:09.5]} 31... Be8 {[%clk 0:00:17.1]}
32. Nc7 {[%clk 0:00:07.8]} 32... Kh8 {[%clk 0:00:11.1]} 33. Qxf8# {[%clk
0:00:04.3]} 1-0

[Event "Early-Titled-Tuesday-Blitz-March-19-2024"]
[Site "Chess.com"]
[Date "2024.03.19"]
[Round "7"]
[White "VladimirBugayev"]
[Black "Lady_Nika"]
[Result "0-1"]
[WhiteElo "2348"]
[BlackElo "2581"]
[TimeControl "180+1"]
[EndTime "9:18:51 PDT"]
[Termination "Lady_Nika won on time"]

1. e4 {[%clk 0:03:00.9]} 1... c5 {[%clk 0:02:59.7]} 2. Nc3 {[%clk 0:03:00.6]}
2... e6 {[%clk 0:02:59.9]} 3. f4 {[%clk 0:03:00.4]} 3... Nc6 {[%clk 0:02:59.8]}
4. Nf3 {[%clk 0:02:55.8]} 4... d5 {[%clk 0:03:00.1]} 5. Bb5 {[%clk 0:02:54.3]}
5... d4 {[%clk 0:02:59.5]} 6. Nb1 {[%clk 0:02:40.7]} 6... Qc7 {[%clk 0:02:58.6]}
7. Ne5 {[%clk 0:02:30]} 7... a6 {[%clk 0:02:46.8]} 8. Bxc6+ {[%clk 0:02:28.9]}
8... bxc6 {[%clk 0:02:46.7]} 9. d3 {[%clk 0:02:29.3]} 9... Bd6 {[%clk
0:02:46.6]} 10. O-O {[%clk 0:01:59.3]} 10... Nh6 {[%clk 0:02:27.5]} 11. Nc4
{[%clk 0:01:54.1]} 11... Be7 {[%clk 0:02:27.1]} 12. g4 {[%clk 0:01:39.4]} 12...
a5 {[%clk 0:02:26.9]} 13. g5 {[%clk 0:01:39]} 13... Ng8 {[%clk 0:02:27]} 14. a4
{[%clk 0:01:28.1]} 14... Ba6 {[%clk 0:02:26.3]} 15. Nba3 {[%clk 0:01:28.2]}
15... f6 {[%clk 0:02:15.7]} 16. Qh5+ {[%clk 0:01:23.1]} 16... g6 {[%clk
0:02:15.4]} 17. Qh3 {[%clk 0:01:23.6]} 17... Bc8 {[%clk 0:01:53.1]} 18. Bd2
{[%clk 0:01:07.5]} 18... h6 {[%clk 0:01:42.4]} 19. gxf6 {[%clk 0:01:02.5]} 19...
Nxf6 {[%clk 0:01:40.1]} 20. Qg2 {[%clk 0:00:52.7]} 20... Rg8 {[%clk 0:01:33.9]}
21. Kh1 {[%clk 0:00:52.1]} 21... Bd7 {[%clk 0:01:29.4]} 22. Ne5 {[%clk
0:00:51.6]} 22... Kd8 {[%clk 0:00:55.4]} 23. Nac4 {[%clk 0:00:50.7]} 23... Be8
{[%clk 0:00:53.9]} 24. Qh3 {[%clk 0:00:43.9]} 24... Bd7 {[%clk 0:00:36.9]} 25.
Nxd7 {[%clk 0:00:39.2]} 25... Kxd7 {[%clk 0:00:34.1]} 26. Rae1 {[%clk
0:00:28.1]} 26... h5 {[%clk 0:00:32.4]} 27. Ne5+ {[%clk 0:00:20.2]} 27... Kd6
{[%clk 0:00:30.5]} 28. Nf7+ {[%clk 0:00:20.8]} 28... Kd7 {[%clk 0:00:30]} 29.
Ng5 {[%clk 0:00:21.4]} 29... Ng4 {[%clk 0:00:29.5]} 30. f5 {[%clk 0:00:19.4]}
30... gxf5 {[%clk 0:00:27.3]} 31. Nxe6 {[%clk 0:00:17.1]} 31... Kxe6 {[%clk
0:00:27]} 32. exf5+ {[%clk 0:00:17.7]} 32... Kd7 {[%clk 0:00:26.5]} 33. Qxh5
{[%clk 0:00:16.7]} 33... Nf6 {[%clk 0:00:26.3]} 34. Qf7 {[%clk 0:00:15]} 34...
Qd6 {[%clk 0:00:26.6]} 35. Rxe7+ {[%clk 0:00:07.7]} 35... Qxe7 {[%clk
0:00:25.3]} 36. Qc4 {[%clk 0:00:05.2]} 36... Rg7 {[%clk 0:00:24.7]} 37. Re1
{[%clk 0:00:03.7]} 37... Qd6 {[%clk 0:00:24.7]} 0-1

[Event "Early-Titled-Tuesday-Blitz-March-19-2024"]
[Site "Chess.com"]
[Date "2024.03.19"]
[Round "7"]
[White "Zheenbekov86"]
[Black "Gennady_Kozlov"]
[Result "0-1"]
[WhiteElo "2459"]
[BlackElo "2678"]
[TimeControl "180+1"]
[EndTime "9:18:52 PDT"]
[Termination "Gennady_Kozlov won on time"]

1. Nf3 {[%clk 0:02:59.3]} 1... d5 {[%clk 0:02:29]} 2. g3 {[%clk 0:02:58.8]} 2...
Bf5 {[%clk 0:02:29]} 3. Bg2 {[%clk 0:02:58.7]} 3... c6 {[%clk 0:02:29.7]} 4. O-O
{[%clk 0:02:59]} 4... h6 {[%clk 0:02:29.9]} 5. d3 {[%clk 0:02:59.5]} 5... e6
{[%clk 0:02:30.5]} 6. Nbd2 {[%clk 0:02:59.6]} 6... Nf6 {[%clk 0:02:31.1]} 7. Qe1
{[%clk 0:02:53.8]} 7... Be7 {[%clk 0:02:28.3]} 8. e4 {[%clk 0:02:53.6]} 8...
dxe4 {[%clk 0:02:28.1]} 9. dxe4 {[%clk 0:02:53.5]} 9... Bh7 {[%clk 0:02:29]} 10.
e5 {[%clk 0:02:46.6]} 10... Nd5 {[%clk 0:02:28.3]} 11. Ne4 {[%clk 0:02:46.3]}
11... O-O {[%clk 0:02:27.5]} 12. Qe2 {[%clk 0:02:44.5]} 12... Nd7 {[%clk
0:02:27.4]} 13. Rd1 {[%clk 0:02:42.7]} 13... Qc7 {[%clk 0:02:26]} 14. c4 {[%clk
0:02:26.4]} 14... N5b6 {[%clk 0:02:25.2]} 15. Nc3 {[%clk 0:02:21.8]} 15... Rad8
{[%clk 0:02:11]} 16. h4 {[%clk 0:02:01.3]} 16... Nc5 {[%clk 0:02:07.9]} 17. Be3
{[%clk 0:01:43.3]} 17... Bd3 {[%clk 0:01:50]} 18. Qe1 {[%clk 0:01:37.3]} 18...
Nxc4 {[%clk 0:01:47.9]} 19. Bxc5 {[%clk 0:01:21.1]} 19... Bxc5 {[%clk
0:01:38.1]} 20. Ne4 {[%clk 0:01:21.4]} 20... Be7 {[%clk 0:01:36.5]} 21. b3
{[%clk 0:01:13.2]} 21... Nxe5 {[%clk 0:01:30.6]} 22. h5 {[%clk 0:00:43.7]} 22...
Nxf3+ {[%clk 0:01:22]} 23. Bxf3 {[%clk 0:00:43.1]} 23... Bxe4 {[%clk 0:01:22.4]}
24. Bxe4 {[%clk 0:00:39.3]} 24... Bf6 {[%clk 0:01:22.6]} 25. Rac1 {[%clk
0:00:37.9]} 25... Qe5 {[%clk 0:01:20.9]} 26. Qe2 {[%clk 0:00:31.3]} 26... Qb2
{[%clk 0:01:15]} 27. Rc2 {[%clk 0:00:27.4]} 27... Rxd1+ {[%clk 0:01:12]} 28.
Qxd1 {[%clk 0:00:27.3]} 28... Qa1 {[%clk 0:01:12.8]} 29. Rc1 {[%clk 0:00:24.2]}
29... Qxa2 {[%clk 0:01:11.6]} 30. Qf3 {[%clk 0:00:18.7]} 30... Qb2 {[%clk
0:01:10]} 31. Rd1 {[%clk 0:00:17.2]} 31... Rd8 {[%clk 0:01:07.4]} 32. Rf1 {[%clk
0:00:13.8]} 32... Qe5 {[%clk 0:01:05.1]} 33. Bb1 {[%clk 0:00:12.1]} 33... Rd2
{[%clk 0:01:04.1]} 34. b4 {[%clk 0:00:10.6]} 34... a6 {[%clk 0:00:57.4]} 35. Qg4
{[%clk 0:00:08]} 35... Qd4 {[%clk 0:00:55.4]} 36. Qf3 {[%clk 0:00:07.6]} 36...
Be5 {[%clk 0:00:53.4]} 37. Re1 {[%clk 0:00:05.3]} 37... Bd6 {[%clk 0:00:50.5]}
38. Kg2 {[%clk 0:00:05.5]} 38... Qb2 {[%clk 0:00:46.9]} 39. Rf1 {[%clk
0:00:02.8]} 39... Qxb4 {[%clk 0:00:45]} 40. Kh3 {[%clk 0:00:01.8]} 40... Qb5
{[%clk 0:00:42.4]} 41. Kg2 {[%clk 0:00:02.2]} 41... Qd5 {[%clk 0:00:41.7]} 0-1

[Event "Early-Titled-Tuesday-Blitz-March-19-2024"]
[Site "Chess.com"]
[Date "2024.03.19"]
[Round "7"]
[White "HandKnit"]
[Black "RianKapriaga"]
[Result "1/2-1/2"]
[WhiteElo "2499"]
[BlackElo "2346"]
[TimeControl "180+1"]
[EndTime "9:18:53 PDT"]
[Termination "Game drawn by repetition"]

1. Nf3 {[%clk 0:03:00.9]} 1... Nf6 {[%clk 0:02:58]} 2. g3 {[%clk 0:03:00.9]}
2... d5 {[%clk 0:02:55.8]} 3. Bg2 {[%clk 0:03:00.6]} 3... e6 {[%clk 0:02:55.8]}
4. O-O {[%clk 0:03:00.4]} 4... Be7 {[%clk 0:02:55]} 5. d3 {[%clk 0:02:59.4]}
5... O-O {[%clk 0:02:54.7]} 6. Nbd2 {[%clk 0:02:59.8]} 6... b6 {[%clk
0:02:54.9]} 7. e4 {[%clk 0:02:59.5]} 7... Bb7 {[%clk 0:02:55]} 8. Qe2 {[%clk
0:02:59.3]} 8... c5 {[%clk 0:02:54.4]} 9. e5 {[%clk 0:02:59]} 9... Nfd7 {[%clk
0:02:53.7]} 10. Re1 {[%clk 0:02:59.3]} 10... Nc6 {[%clk 0:02:52]} 11. h4 {[%clk
0:02:54.7]} 11... Qc7 {[%clk 0:02:48.5]} 12. c4 {[%clk 0:02:54.1]} 12... d4
{[%clk 0:02:41.1]} 13. Nf1 {[%clk 0:02:52.7]} 13... Rae8 {[%clk 0:02:33.4]} 14.
Bf4 {[%clk 0:02:48.9]} 14... Qc8 {[%clk 0:02:21.6]} 15. N1h2 {[%clk 0:02:45.7]}
15... f6 {[%clk 0:02:01.7]} 16. exf6 {[%clk 0:02:38.5]} 16... Bxf6 {[%clk
0:02:01.5]} 17. Bd6 {[%clk 0:02:35.6]} 17... Rf7 {[%clk 0:01:58.1]} 18. Ng4
{[%clk 0:02:30]} 18... e5 {[%clk 0:01:28]} 19. Bxe5 {[%clk 0:02:08.2]} 19...
Ndxe5 {[%clk 0:01:23.2]} 20. Nfxe5 {[%clk 0:02:03.9]} 20... Nxe5 {[%clk
0:01:16.2]} 21. f4 {[%clk 0:01:56.6]} 21... Bxg2 {[%clk 0:01:06.2]} 22. Kxg2
{[%clk 0:01:37.7]} 22... Qxg4 {[%clk 0:00:59.2]} 23. Qxg4 {[%clk 0:01:36.6]}
23... Nxg4 {[%clk 0:01:00.1]} 24. Rxe8+ {[%clk 0:01:36.4]} 24... Rf8 {[%clk
0:01:00.6]} 25. Rxf8+ {[%clk 0:01:33.2]} 25... Kxf8 {[%clk 0:01:01.5]} 26. Kf3
{[%clk 0:01:30.1]} 26... h5 {[%clk 0:00:55.8]} 27. Rb1 {[%clk 0:01:26.1]} 27...
a5 {[%clk 0:00:53.6]} 28. a3 {[%clk 0:01:26.6]} 28... Be7 {[%clk 0:00:52.2]} 29.
Re1 {[%clk 0:01:14.9]} 29... Kf7 {[%clk 0:00:50.7]} 30. f5 {[%clk 0:01:04.9]}
30... Ne3 {[%clk 0:00:45.3]} 31. Ke4 {[%clk 0:01:04.4]} 31... Kf6 {[%clk
0:00:38.1]} 32. Rb1 {[%clk 0:01:01]} 32... Bd6 {[%clk 0:00:31.2]} 33. b4 {[%clk
0:00:56.5]} 33... axb4 {[%clk 0:00:29.5]} 34. axb4 {[%clk 0:00:57.4]} 34... Nxf5
{[%clk 0:00:25.3]} 35. bxc5 {[%clk 0:00:55.9]} 35... Bxc5 {[%clk 0:00:22.9]} 36.
Rf1 {[%clk 0:00:52]} 36... g6 {[%clk 0:00:22.7]} 37. Kd5 {[%clk 0:00:47.3]}
37... Kg7 {[%clk 0:00:17.8]} 38. Rf3 {[%clk 0:00:47.3]} 38... Kf6 {[%clk
0:00:16.3]} 39. Rf1 {[%clk 0:00:41.7]} 39... Ke7 {[%clk 0:00:16.4]} 40. Rf3
{[%clk 0:00:37.7]} 40... Kf7 {[%clk 0:00:16.1]} 41. Rf1 {[%clk 0:00:25.8]} 41...
Kg7 {[%clk 0:00:15.6]} 42. Rf3 {[%clk 0:00:25.6]} 42... Kf6 {[%clk 0:00:15.7]}
43. Rf1 {[%clk 0:00:23.9]} 1/2-1/2

[Event "Early-Titled-Tuesday-Blitz-March-19-2024"]
[Site "Chess.com"]
[Date "2024.03.19"]
[Round "7"]
[White "Elegance_Riks"]
[Black "DvaHrasta"]
[Result "1/2-1/2"]
[WhiteElo "2768"]
[BlackElo "2498"]
[TimeControl "180+1"]
[EndTime "9:18:55 PDT"]
[Termination "Game drawn by repetition"]

1. Nf3 {[%clk 0:03:00.9]} 1... Nf6 {[%clk 0:02:59.2]} 2. c4 {[%clk 0:03:00.8]}
2... e6 {[%clk 0:02:58]} 3. g3 {[%clk 0:03:01.2]} 3... d5 {[%clk 0:02:57.1]} 4.
Bg2 {[%clk 0:03:01.7]} 4... d4 {[%clk 0:02:57.3]} 5. O-O {[%clk 0:03:01.9]} 5...
c5 {[%clk 0:02:57.3]} 6. e3 {[%clk 0:02:57.2]} 6... Nc6 {[%clk 0:02:57]} 7. exd4
{[%clk 0:02:57.4]} 7... cxd4 {[%clk 0:02:56]} 8. d3 {[%clk 0:02:57.7]} 8... Be7
{[%clk 0:02:47.5]} 9. Re1 {[%clk 0:02:50.6]} 9... O-O {[%clk 0:02:46.8]} 10. Na3
{[%clk 0:02:50.8]} 10... a6 {[%clk 0:02:39.8]} 11. Nc2 {[%clk 0:02:49.6]} 11...
Re8 {[%clk 0:02:37.9]} 12. Bf4 {[%clk 0:02:47.2]} 12... Qb6 {[%clk 0:02:28.3]}
13. Rb1 {[%clk 0:02:43]} 13... a5 {[%clk 0:02:19.6]} 14. a3 {[%clk 0:02:39.1]}
14... a4 {[%clk 0:02:17.8]} 15. Ne5 {[%clk 0:02:38.9]} 15... Nd7 {[%clk
0:02:08.3]} 16. Nxc6 {[%clk 0:01:35.6]} 16... bxc6 {[%clk 0:02:06.8]} 17. Nb4
{[%clk 0:01:34.5]} 17... Bxb4 {[%clk 0:01:56.6]} 18. axb4 {[%clk 0:01:34.6]}
18... Bb7 {[%clk 0:01:54]} 19. Bd2 {[%clk 0:01:33.7]} 19... c5 {[%clk
0:01:48.9]} 20. b5 {[%clk 0:01:33.5]} 20... Bxg2 {[%clk 0:01:46.4]} 21. Kxg2
{[%clk 0:01:33.6]} 21... a3 {[%clk 0:01:40.7]} 22. bxa3 {[%clk 0:01:30.7]} 22...
Qb7+ {[%clk 0:01:36.9]} 23. Kg1 {[%clk 0:01:17.7]} 23... Rxa3 {[%clk 0:01:36.5]}
24. Qe2 {[%clk 0:01:18]} 24... e5 {[%clk 0:01:29.9]} 25. f3 {[%clk 0:01:08.5]}
25... h6 {[%clk 0:01:27.2]} 26. Ra1 {[%clk 0:01:06.6]} 26... Rea8 {[%clk
0:01:25.6]} 27. Rxa3 {[%clk 0:01:05.8]} 27... Rxa3 {[%clk 0:01:25.7]} 28. Bc1
{[%clk 0:01:04]} 28... Ra1 {[%clk 0:01:20.6]} 29. f4 {[%clk 0:01:02.7]} 29...
exf4 {[%clk 0:01:13.6]} 30. Bxf4 {[%clk 0:00:57.1]} 30... Rxe1+ {[%clk
0:01:11.8]} 31. Qxe1 {[%clk 0:00:58]} 31... Nf6 {[%clk 0:01:06.2]} 32. Qe2
{[%clk 0:00:50.2]} 32... h5 {[%clk 0:00:48.2]} 33. h3 {[%clk 0:00:49.6]} 33...
Qd7 {[%clk 0:00:38.9]} 34. Kh2 {[%clk 0:00:48.6]} 34... h4 {[%clk 0:00:32.9]}
35. g4 {[%clk 0:00:41.4]} 35... Qa7 {[%clk 0:00:21.5]} 36. Qg2 {[%clk
0:00:30.1]} 36... Nd7 {[%clk 0:00:15.8]} 37. Qe2 {[%clk 0:00:23.2]} 37... Nf6
{[%clk 0:00:14.9]} 38. Bd6 {[%clk 0:00:15.4]} 38... Qd7 {[%clk 0:00:12.2]} 39.
Bf4 {[%clk 0:00:13.9]} 39... Qa7 {[%clk 0:00:12]} 1/2-1/2

[Event "Early-Titled-Tuesday-Blitz-March-19-2024"]
[Site "Chess.com"]
[Date "2024.03.19"]
[Round "7"]
[White "mishanick"]
[Black "GOGIEFF"]
[Result "0-1"]
[WhiteElo "3122"]
[BlackElo "3031"]
[TimeControl "180+1"]
[EndTime "9:18:56 PDT"]
[Termination "GOGIEFF won by resignation"]

1. d4 {[%clk 0:03:00.9]} 1... Nf6 {[%clk 0:02:59.9]} 2. c4 {[%clk 0:03:01.6]}
2... e6 {[%clk 0:03:00.3]} 3. Nf3 {[%clk 0:03:01.6]} 3... d5 {[%clk 0:03:00.7]}
4. Nc3 {[%clk 0:03:02.3]} 4... c6 {[%clk 0:03:00.6]} 5. e3 {[%clk 0:03:00.3]}
5... Nbd7 {[%clk 0:03:00.1]} 6. Qc2 {[%clk 0:03:00.7]} 6... Bd6 {[%clk
0:02:59.5]} 7. Be2 {[%clk 0:03:01.3]} 7... O-O {[%clk 0:02:58.3]} 8. O-O {[%clk
0:03:01.9]} 8... dxc4 {[%clk 0:02:57.2]} 9. Bxc4 {[%clk 0:03:02.8]} 9... b5
{[%clk 0:02:57]} 10. Bd3 {[%clk 0:03:03.6]} 10... Bb7 {[%clk 0:02:56.7]} 11. e4
{[%clk 0:03:03.7]} 11... e5 {[%clk 0:02:57.1]} 12. Bg5 {[%clk 0:03:03.4]} 12...
Re8 {[%clk 0:02:45.3]} 13. dxe5 {[%clk 0:02:40.6]} 13... Nxe5 {[%clk 0:02:44.5]}
14. Nxe5 {[%clk 0:02:41.2]} 14... Bxe5 {[%clk 0:02:26.9]} 15. f4 {[%clk
0:02:41.8]} 15... Bxc3 {[%clk 0:02:04.4]} 16. bxc3 {[%clk 0:02:41.1]} 16... Qb6+
{[%clk 0:02:03.6]} 17. Kh1 {[%clk 0:02:41.1]} 17... c5 {[%clk 0:02:04.1]} 18. e5
{[%clk 0:02:35.1]} 18... c4 {[%clk 0:02:04.1]} 19. Bf5 {[%clk 0:02:32.6]} 19...
Nd5 {[%clk 0:01:59.9]} 20. Bxh7+ {[%clk 0:01:08.4]} 20... Kh8 {[%clk 0:01:59.5]}
21. Be4 {[%clk 0:01:01.9]} 21... Ne3 {[%clk 0:01:58.4]} 22. Qb1 {[%clk
0:01:01.4]} 22... Nxf1 {[%clk 0:01:43.8]} 23. Bxb7 {[%clk 0:01:01.8]} 23... Qxb7
{[%clk 0:01:43.4]} 24. Qxf1 {[%clk 0:01:01.9]} 24... Rac8 {[%clk 0:01:40.2]} 25.
Re1 {[%clk 0:00:54.7]} 25... Rc5 {[%clk 0:01:30.5]} 26. Qf2 {[%clk 0:00:38]}
26... Rd5 {[%clk 0:01:30.1]} 27. h3 {[%clk 0:00:35.2]} 27... a5 {[%clk
0:01:08.6]} 28. Qh4+ {[%clk 0:00:28.2]} 28... Kg8 {[%clk 0:01:08.3]} 29. Qg4
{[%clk 0:00:29]} 29... Qd7 {[%clk 0:00:56]} 30. Qf3 {[%clk 0:00:12.5]} 30... b4
{[%clk 0:00:52.7]} 31. Kh2 {[%clk 0:00:09]} 31... Rd3 {[%clk 0:00:51.1]} 32. Qe4
{[%clk 0:00:07.1]} 32... Qd5 {[%clk 0:00:51.2]} 33. cxb4 {[%clk 0:00:04]} 33...
axb4 {[%clk 0:00:50.9]} 34. Qf5 {[%clk 0:00:04.4]} 34... Rd2 {[%clk 0:00:46.4]}
35. Qg4 {[%clk 0:00:04.8]} 35... c3 {[%clk 0:00:40.7]} 36. f5 {[%clk 0:00:04.8]}
36... Rxe5 {[%clk 0:00:38.9]} 37. Bxd2 {[%clk 0:00:04.8]} 37... cxd2 {[%clk
0:00:38.7]} 38. f6 {[%clk 0:00:05.5]} 38... Rg5 {[%clk 0:00:27.8]} 39. Re8+
{[%clk 0:00:03.3]} 39... Kh7 {[%clk 0:00:28.1]} 40. Qh4+ {[%clk 0:00:01.6]}
40... Kg6 {[%clk 0:00:28.4]} 41. Re2 {[%clk 0:00:01.8]} 41... d1=Q {[%clk
0:00:27.4]} 42. fxg7 {[%clk 0:00:02.5]} 42... Qd6+ {[%clk 0:00:25]} 0-1

[Event "Early-Titled-Tuesday-Blitz-March-19-2024"]
[Site "Chess.com"]
[Date "2024.03.19"]
[Round "7"]
[White "LLariMarc"]
[Black "Statham_01"]
[Result "1-0"]
[WhiteElo "2440"]
[BlackElo "2583"]
[TimeControl "180+1"]
[EndTime "9:18:56 PDT"]
[Termination "LLariMarc won on time"]

1. d4 {[%clk 0:03:00.9]} 1... e6 {[%clk 0:02:58.8]} 2. c4 {[%clk 0:03:00.4]}
2... d5 {[%clk 0:02:58.1]} 3. Nc3 {[%clk 0:03:00.5]} 3... c5 {[%clk 0:02:58.5]}
4. cxd5 {[%clk 0:02:56.1]} 4... cxd4 {[%clk 0:02:58.7]} 5. Qxd4 {[%clk
0:02:54.9]} 5... Nc6 {[%clk 0:02:54.5]} 6. Qd1 {[%clk 0:02:44.3]} 6... exd5
{[%clk 0:02:54.9]} 7. Qxd5 {[%clk 0:02:34.3]} 7... Bd6 {[%clk 0:02:54.8]} 8. a3
{[%clk 0:02:29.5]} 8... Nf6 {[%clk 0:02:52.2]} 9. Qd1 {[%clk 0:02:29]} 9... O-O
{[%clk 0:02:50.9]} 10. Nf3 {[%clk 0:02:29.6]} 10... Qe7 {[%clk 0:02:48.8]} 11.
Bg5 {[%clk 0:02:27.9]} 11... Bf5 {[%clk 0:02:40.4]} 12. e3 {[%clk 0:02:23.1]}
12... Rad8 {[%clk 0:02:39.3]} 13. Nd5 {[%clk 0:01:43.6]} 13... Qe6 {[%clk
0:02:31.5]} 14. Bc4 {[%clk 0:01:36.7]} 14... Qe4 {[%clk 0:01:54.7]} 15. Bxf6
{[%clk 0:01:25.9]} 15... Qxc4 {[%clk 0:01:50.3]} 16. Bxd8 {[%clk 0:01:24.9]}
16... Rxd8 {[%clk 0:01:48.1]} 17. Rc1 {[%clk 0:01:23.1]} 17... Qa6 {[%clk
0:01:36.9]} 18. Nd4 {[%clk 0:01:12.9]} 18... Ne5 {[%clk 0:01:14.5]} 19. Nxf5
{[%clk 0:01:03.4]} 19... Nd3+ {[%clk 0:01:14.8]} 20. Kd2 {[%clk 0:01:02.8]}
20... Bf8 {[%clk 0:00:24.4]} 21. e4 {[%clk 0:00:54]} 21... Nxf2 {[%clk
0:00:14.8]} 22. Qf3 {[%clk 0:00:49.6]} 22... Qa5+ {[%clk 0:00:10.1]} 23. Ke2
{[%clk 0:00:47.6]} 23... Bc5 {[%clk 0:00:04.9]} 24. b4 {[%clk 0:00:40.1]} 24...
Qa6+ {[%clk 0:00:04.3]} 25. Kd2 {[%clk 0:00:36.4]} 25... Nxe4+ {[%clk 0:00:02]}
26. Qxe4 {[%clk 0:00:33.4]} 26... Bf8 {[%clk 0:00:02.4]} 27. Rhd1 {[%clk
0:00:31]} 27... Qxa3 {[%clk 0:00:02.4]} 28. Ne3 {[%clk 0:00:26.8]} 28... a5
{[%clk 0:00:01.6]} 29. bxa5 {[%clk 0:00:25.5]} 29... Bb4+ {[%clk 0:00:01.7]} 30.
Ke2 {[%clk 0:00:24.7]} 30... Qa2+ {[%clk 0:00:01.3]} 31. Rc2 {[%clk 0:00:23.5]}
31... Qxa5 {[%clk 0:00:01.5]} 32. Nxb4 {[%clk 0:00:18.7]} 32... Qb5+ {[%clk
0:00:01.7]} 33. Qc4 {[%clk 0:00:17.6]} 33... Qe8 {[%clk 0:00:01.6]} 34. Rxd8
{[%clk 0:00:17.5]} 34... Qxd8 {[%clk 0:00:02.3]} 35. Qc8 {[%clk 0:00:17.6]} 1-0